bitfinex-derivatives/quotes_ETHF0:USTF0_20250810
["timestamp","ask_amount","ask_price","bid_price","bid_amount"]
[1754864781436,21.864,4222.9,4222.4,0.9289]
[1754864781739,21.864,4222.9,4222.4,0.3618]
[1754864781740,1.5773,4222.5,4222.4,0.3618]
[1754864782140,2.05088,4222.5,4222.4,0.3618]
[1754864782359,1.5773,4222.5,4222.4,1.5597]
[1754864782552,0.2652,4222.8,4222.4,1.5597]
[1754864782755,0.4552,4222.9,4222.8,1.5597]
[1754864783056,0.8722,4222.9,4222.8,1.5597]
[1754864783253,1.3121,4222.9,4222.8,1.5597]
[1754864783450,1.5773,4222.9,4222.8,1.5597]
[1754864784553,1.3121,4222.9,4222.8,1.5597]
[1754864784753,1.044,4222.9,4222.8,1.5597]
[1754864785458,1.3121,4222.9,4222.8,1.5597]
[1754864786048,1.5773,4222.9,4222.8,1.5597]
[1754864787055,1.3121,4222.9,4222.8,1.5597]
[1754864787355,0.4552,4222.9,4222.8,1.5597]
[1754864787658,1.5773,4222.9,4222.8,1.5597]
[1754864790258,0.47353,4223.0,4222.9,1.5597]
[1754864790655,1.34573,4223.0,4222.9,1.5597]
[1754864790959,1.3121,4223.0,4222.9,1.5597]
[1754864791156,1.044,4223.0,4222.9,1.5597]
[1754864791356,0.47351,4223.2,4222.9,1.5597]
[1754864791656,0.2689,4223.2,4223.1,1.5597]
[1754864791856,0.47348,4223.4,4223.3,1.5597]
[1754864792052,0.6851,4224.4,4223.9,0.1809]
[1754864792249,1.1004,4224.1,4224.0,0.6308]
[1754864792449,2.0507,4224.1,4224.0,0.6308]
[1754864792855,1.5773,4224.1,4224.0,0.8954]
[1754864793055,1.5773,4224.1,4224.0,1.5597]
[1754864793262,1.3121,4224.1,4224.0,1.5597]
[1754864793561,0.4552,4224.1,4224.0,1.5597]
[1754864794462,1.5773,4224.1,4224.0,1.5597]
[1754864797358,1.5435,4223.7,4223.6,2.05335]
[1754864801662,1.2756,4223.7,4223.6,2.05335]
[1754864801864,1.0131,4223.7,4223.6,2.05335]
[1754864802264,1.5435,4223.7,4223.6,2.05335]
[1754864803767,1.5435,4223.7,4223.6,1.64225]
[1754864803965,1.5435,4223.7,4223.6,0.82015]
[1754864804170,1.5435,4223.2,4223.1,2.05341]
[1754864804370,2.13592457,4223.2,4223.1,0.82021]
[1754864804567,2.13592457,4223.2,4223.1,0.64561]
[1754864804770,2.13592457,4223.2,4223.1,2.05341]
[1754864805670,2.13592457,4223.2,4223.1,0.47351]
[1754864806172,1.5435,4223.2,4223.1,0.47351]
[1754864806569,1.5435,4223.0,4222.9,0.47353]
[1754864807573,1.5435,4223.0,4222.9,2.05343]
[1754864807872,1.2756,4223.0,4222.9,2.05343]
[1754864808464,1.5435,4223.3,4223.2,0.8202]
[1754864808665,1.5435,4223.3,4223.2,2.0534]
[1754864808861,1.09675,4223.7,4223.6,0.6208]
[1754864809067,1.09675,4223.7,4223.6,1.5799]
[1754864809561,2.01695,4223.7,4223.1,0.2785]
[1754864809767,2.01695,4223.7,4223.6,1.5799]
[1754864809969,1.5435,4223.7,4223.6,1.5799]
[1754864810171,1.2756,4224.0,4223.9,0.6208]
[1754864810470,0.6233,4224.0,4223.9,2.05332]
[1754864810773,1.0131,4224.0,4223.9,2.05332]
[1754864810961,1.5435,4224.0,4223.9,2.05332]
[1754864811165,1.0131,4224.0,4223.9,2.05332]
[1754864811370,1.5435,4224.0,4223.9,2.05332]
[1754864812770,0.1783,4224.4,4224.3,0.3467]
[1754864812965,0.8912,4224.4,4224.3,2.05327]
[1754864813362,1.5435,4224.4,4224.3,1.5799]
[1754864815568,2.01686,4224.4,4224.3,1.5799]
[1754864816466,1.5435,4224.4,4224.3,1.5799]
[1754864818773,1.5435,4224.4,4224.3,0.3467]
[1754864819288,0.3477,4224.2,4224.1,0.64549]
[1754864819466,0.3477,4224.2,4224.0,0.6806]
[1754864819467,1.5435,4224.1,4224.0,0.64551]
[1754864819668,1.5435,4224.1,4223.6,0.6806]
[1754864819867,1.281,4223.7,4223.6,1.5799]
[1754864820063,1.5435,4223.7,4223.6,1.5799]
[1754864820268,1.2756,4223.7,4223.6,1.5799]
[1754864820572,0.8437,4223.7,4223.6,1.5799]
[1754864820768,1.18334,4224.7,4223.2,0.18659157]
[1754864820769,0.3898,4224.2,4224.1,0.3467]
[1754864821075,1.5435,4224.2,4224.1,1.5799]
[1754864821273,0.2756,4224.2,4224.1,1.5799]
[1754864821773,1.5435,4224.2,4224.1,1.5799]
[1754864822674,1.2756,4224.2,4224.1,1.5799]
[1754864823068,1.5435,4224.2,4224.1,1.5799]
[1754864826178,1.5435,4224.2,4224.1,0.8947]
[1754864827375,0.1696,4223.6,4223.5,1.58626]
[1754864827568,1.57,4223.6,4223.5,1.77036]
[1754864827971,1.57,4223.6,4223.5,2.04256]
[1754864829471,1.57,4223.6,4223.5,1.37626]
[1754864829673,0.6319,4223.4,4223.3,0.47348]
[1754864829870,1.57,4223.4,4223.3,2.04258]
[1754864831774,1.1397,4223.4,4223.3,2.04258]
[1754864832185,1.57,4223.4,4223.3,2.04258]
[1754864832978,2.16214106,4223.4,4223.1,0.4735]
[1754864833173,2.16214106,4223.4,4223.0,0.6758]
[1754864833174,2.04351,4223.1,4223.0,0.1841]
[1754864833369,1.57,4223.1,4223.0,0.1841]
[1754864833577,1.57,4223.1,4223.0,0.6211]
[1754864833780,1.57,4223.1,4223.0,1.5691]
[1754864833979,5.44228164,4227.6,4223.0,0.2568]
[1754864833980,2.45256364,4224.9,4223.0,0.2568]
[1754864834277,2.45256364,4224.9,4224.0,1.5691]
[1754864834278,0.8926,4224.1,4224.0,1.5691]
[1754864834682,1.57,4224.1,4224.0,1.5691]
[1754864835181,1.57,4224.1,4223.9,0.47341]
[1754864835182,1.10524,4224.7,4224.6,0.3643]
[1754864835385,1.10524,4224.7,4224.6,0.9028]
[1754864835681,1.57,4225.4,4225.3,2.04236]
[1754864835885,1.57,4225.4,4225.3,1.5691]
[1754864838595,22.30422,4225.7,4224.8,1.37085045]
[1754864838596,0.6319,4225.7,4225.6,0.6365]
[1754864838881,1.57,4225.7,4225.6,1.5691]
[1754864839284,1.57,4225.7,4225.6,0.6365]
[1754864839285,1.3093,4225.7,4225.6,0.6365]
[1754864839480,1.0303,4225.7,4225.6,1.5691]
[1754864839677,0.4623,4225.7,4225.6,1.5691]
[1754864839879,1.3093,4225.7,4225.6,1.5691]
[1754864840083,1.57,4225.7,4225.6,0.1802]
[1754864840585,1.57,4225.7,4225.6,0.6211]
[1754864840884,1.57,4225.7,4225.6,1.5691]
[1754864843577,1.57,4225.7,4225.6,2.04233]
[1754864843777,0.98635066,4226.3,4226.2,1.5691]
[1754864843778,1.57,4226.3,4226.2,1.5691]
[1754864843982,0.4623,4226.4,4226.3,1.5691]
[1754864844188,1.57,4226.4,4226.3,0.6365]
[1754864844581,1.57,4226.4,4226.3,1.5691]
[1754864844985,0.47314,4226.5,4224.9,1.18326]
[1754864844986,2.0432,4225.9,4225.8,1.5691]
[1754864845193,1.7825,4225.9,4225.8,1.5691]
[1754864845891,2.0432,4225.9,4225.8,1.5691]
[1754864846590,2.0432,4225.9,4225.8,0.9028]
[1754864846779,2.0432,4225.9,4225.8,1.5691]
[1754864847679,1.57,4225.9,4225.8,1.5691]
[1754864847995,1.3093,4225.9,4225.8,1.5691]
[1754864849083,1.3093,4225.9,4225.8,2.04231]
[1754864849289,1.1397,4225.9,4225.8,1.5691]
[1754864849886,1.3093,4225.9,4225.8,1.5691]
[1754864850091,0.8607,4226.1,4226.0,1.5691]
[1754864850491,1.57,4226.1,4226.0,1.5691]
[1754864850893,14.382,4227.9,4225.4,1.18312]
[1754864850894,1.26927364,4228.3,4226.5,0.6758]
[1754864851092,0.9109,4227.8,4227.7,0.6365]
[1754864851291,0.8926,4228.1,4228.0,1.10946]
[1754864851491,0.6319,4228.1,4228.0,2.04206]
[1754864851690,0.6319,4228.1,4228.0,1.5691]
[1754864851897,1.1716,4228.1,4228.0,1.5691]
[1754864853095,1.57,4228.1,4228.0,0.8933]
[1754864853298,1.57,4228.1,4228.0,0.6365]
[1754864853799,0.9381,4228.0,4227.8,0.47298]
[1754864854000,0.6319,4227.9,4227.8,0.47298]
[1754864854199,1.57,4227.9,4227.8,1.10948]
[1754864854602,1.57,4227.9,4227.8,1.36628]
[1754864854799,1.57,4227.9,4227.8,2.04208]
[1754864855797,1.57,4227.9,4227.8,0.47298]
[1754864856203,1.57,4227.9,4227.8,1.09598]
[1754864856402,1.57,4227.9,4227.8,2.02108]
[1754864858098,1.5344,4227.5,4227.4,0.4377]
[1754864858303,1.5344,4227.5,4227.4,0.64513]
[1754864858499,1.5344,4227.5,4227.4,0.47303]
[1754864859204,1.5344,4227.5,4227.4,1.35533]
[1754864859404,1.5344,4227.5,4227.4,2.02113]
[1754864861104,1.5344,4227.5,4227.4,0.83043]
[1754864861500,1.5344,4227.5,4227.4,1.09603]
[1754864861705,1.5344,4227.5,4227.4,1.76423]
[1754864862006,1.5344,4227.5,4227.4,2.02113]
[1754864863306,1.5344,4228.2,4228.1,2.02104]
[1754864864498,0.4254,4228.2,4228.1,2.02104]
[1754864864701,56.816,4229.1,4229.0,0.83025]
[1754864865399,56.816,4229.1,4229.0,0.47285]
[1754864865596,0.2563,4228.3,4227.2,0.2593]
[1754864865801,0.6817,4228.8,4228.7,1.09588]
[1754864866002,1.0956,4228.8,4228.7,1.2912]
[1754864866304,1.56847,4228.8,4228.6,0.47289]
[1754864866506,1.0956,4228.7,4228.6,0.2593]
[1754864867109,1.0956,4228.7,4228.6,0.4446]
[1754864867910,1.0956,4228.7,4228.6,0.6167]
[1754864868112,1.0956,4228.7,4228.6,0.8823]
[1754864869615,1.0956,4228.7,4228.6,1.5481]
[1754864869815,22.8916,4228.7,4228.6,1.5481]
[1754864874309,22.8916,4228.7,4228.2,0.2569]
[1754864874310,0.47293,4228.4,4228.2,0.2569]
[1754864874512,0.47293,4228.4,4228.1,0.47295]
[1754864874513,1.0956,4228.2,4228.1,1.76175]
[1754864874714,22.8886,4228.2,4228.1,1.76175]
[1754864875012,22.8886,4228.2,4228.1,2.02105]
[1754864876215,22.8886,4228.2,4228.1,1.5481]
[1754864879016,22.8886,4228.2,4228.1,0.4446]
[1754864879216,0.4254,4227.9,4227.8,0.623]
[1754864879514,1.0956,4227.6,4227.5,0.8823]
[1754864879817,22.8876,4227.6,4227.5,1.5481]
[1754864881516,23.3606,4227.6,4227.5,1.5481]
[1754864881711,1.5686,4227.6,4227.5,1.5481]
[1754864881915,23.3606,4227.6,4227.5,1.5481]
[1754864883923,22.8876,4227.6,4227.5,1.5481]
[1754864884625,23.3606,4227.6,4227.5,1.5481]
[1754864885125,1.0956,4227.6,4227.5,1.5481]
[1754864885325,22.8876,4227.6,4227.5,1.5481]
[1754864885821,1.06393114,4227.7,4227.6,0.473]
[1754864886122,0.74205,4228.1,4228.0,0.2547]
[1754864886423,0.74205,4228.1,4227.7,0.3988]
[1754864886424,1.61528,4227.8,4227.7,0.8793]
[1754864886622,1.61528,4227.8,4227.7,1.2781]
[1754864886824,1.61528,4227.8,4227.7,1.5373]
[1754864887423,1.61528,4227.8,4227.7,2.01029]
[1754864887625,1.1423,4227.8,4227.7,2.01029]
[1754864889326,35.33727364,4229.3,4226.9,0.6535]
[1754864889628,1.1423,4228.4,4228.3,0.8793]
[1754864889825,23.52524114,4228.4,4228.3,0.8793]
[1754864890025,23.52524114,4228.4,4228.3,1.5373]
[1754864891931,1.73324114,4228.4,4228.3,1.5373]
[1754864895326,23.52324114,4228.4,4228.3,1.5373]
[1754864897735,1.1423,4228.4,4228.3,1.5373]
[1754864898033,23.52224114,4228.4,4228.3,1.5373]
[1754864904334,0.2688,4229.7,4229.3,1.18204]
[1754864904540,22.9293,4229.7,4229.6,2.01008]
[1754864905238,23.52024114,4229.7,4229.6,2.01008]
[1754864906037,23.52024114,4229.7,4229.6,1.5373]
[1754864912646,34.066,4230.5,4229.6,1.0888]
[1754864912647,0.2688,4230.0,4229.6,1.0888]
[1754864912852,0.8732,4230.0,4229.9,1.5373]
[1754864913052,22.6532,4230.0,4229.9,1.5373]
[1754864913248,22.2352,4230.0,4229.9,1.5373]
[1754864913949,0.4552,4230.0,4229.9,1.5373]
[1754864914147,34.65694114,4230.5,4230.4,1.5373]
[1754864914148,2.20593114,4230.5,4230.4,1.5373]
[1754864914348,23.98593114,4230.5,4230.4,1.5373]
[1754864914545,1.73324114,4230.5,4230.4,1.5373]
[1754864914750,23.51324114,4230.5,4230.4,1.5373]
[1754864915047,23.51224114,4230.5,4230.4,1.5373]
[1754864915752,1.73324114,4230.5,4230.4,1.5373]
[1754864915953,0.1784,4230.0,4229.9,0.8837]
[1754864916159,23.94128114,4230.0,4229.9,1.5662]
[1754864916551,23.94128114,4230.0,4229.3,1.5662]
[1754864916552,0.6512,4229.4,4229.3,1.5662]
[1754864916747,2.16434114,4229.4,4229.3,1.5662]
[1754864917150,1.69154114,4229.4,4229.3,1.5662]
[1754864918561,0.1784,4229.4,4229.3,1.5662]
[1754864919455,0.59094114,4229.8,4229.3,1.5662]
[1754864919456,1.1,4231.5,4229.3,0.6678]
[1754864919657,0.47265,4230.8,4230.7,1.5662]
[1754864919862,0.6506,4231.2,4230.8,1.5662]
[1754864919863,1.39484,4230.9,4230.8,1.5662]
[1754864920161,23.34924,4230.9,4230.8,0.8837]
[1754864920456,23.34924,4230.9,4230.5,0.6825]
[1754864920457,0.6506,4230.3,4229.8,1.1202]
[1754864920656,0.829,4229.9,4229.8,2.03895]
[1754864920857,0.1784,4229.9,4229.8,2.03895]
[1754864921159,2.16426114,4230.2,4230.1,0.6276]
[1754864921355,2.16426114,4230.2,4230.1,1.5662]
[1754864923163,0.47278,4229.7,4229.6,0.7021]
[1754864923361,1.5734,4229.4,4229.3,1.5662]
[1754864924065,1.1006,4229.4,4229.3,1.5662]
[1754864925060,1.1006,4229.4,4229.3,0.8837]
[1754864925259,1.1006,4229.4,4229.3,0.4341]
[1754864926960,1.57348,4228.8,4228.7,1.0393]
[1754864927263,1.1006,4228.8,4228.7,1.5662]
[1754864928461,1.1006,4228.8,4228.4,0.47291]
[1754864928462,1.1006,4228.4,4228.3,1.5662]
[1754864930065,0.7073,4228.4,4228.3,1.5662]
[1754864930268,0.1784,4228.4,4228.3,1.5662]
[1754864930669,0.4357,4228.4,4228.3,1.5662]
[1754864931361,0.829,4228.4,4228.3,1.5662]
[1754864931562,1.1006,4228.4,4228.3,1.5662]
[1754864931957,0.1784,4227.8,4227.7,0.8641]
[1754864932163,1.1006,4227.8,4227.7,0.8613]
[1754864932368,1.1006,4227.7,4227.6,1.8612]
[1754864932559,1.1006,4227.7,4227.6,1.7684]
[1754864932761,1.1006,4227.7,4227.6,0.8837]
[1754864932965,1.1006,4227.7,4227.6,1.2954]
[1754864933162,1.1006,4227.7,4227.6,1.5662]
[1754864934368,22.8756,4227.7,4227.6,1.5662]
[1754864937469,1.1823,4228.4,4226.7,1.18276]
[1754864937470,21.9544,4228.0,4227.9,1.5662]
[1754864937869,22.2117,4228.0,4227.9,1.5662]
[1754864938074,22.8766,4228.0,4227.9,1.5662]
[1754864939671,22.8766,4228.0,4227.9,2.03917]
[1754864939870,22.8766,4228.0,4227.9,1.5662]
[1754864940472,23.34956,4228.0,4227.9,1.5662]
[1754864940672,1.57356,4228.0,4227.9,1.5662]
[1754864940874,23.34956,4228.0,4227.9,1.5662]
[1754864941874,0.473,4227.6,4227.5,1.3101]
[1754864942077,1.5736,4227.6,4227.5,1.3101]
[1754864942468,0.92304,4227.3,4227.2,0.4488]
[1754864942672,0.92304,4227.3,4227.2,0.6157]
[1754864942673,1.57364,4227.3,4227.2,0.6157]
[1754864943072,0.92307,4227.0,4226.9,0.8837]
[1754864943270,1.57367,4227.0,4226.9,1.5662]
[1754864945176,1.18243,4228.0,4227.1,0.4117]
[1754864945480,1.31624,4228.2,4228.1,0.4579]
[1754864945770,1.31624,4228.2,4227.8,0.3923]
[1754864945771,1.33837,4227.9,4227.8,1.3018]
[1754864945977,1.61707,4227.9,4227.8,0.9095]
[1754864946776,1.61707,4227.9,4227.8,1.3018]
[1754864947177,1.61707,4227.9,4227.8,1.5604]
[1754864948484,23.39407,4227.9,4227.8,1.3018]
[1754864948686,23.39407,4227.9,4226.7,1.18275]
[1754864948687,1.61712,4227.5,4227.4,1.5524]
[1754864949481,1.61712,4227.5,4227.4,2.02543]
[1754864949679,1.20792,4227.5,4227.4,2.02543]
[1754864950076,1.20792,4227.5,4227.4,1.5524]
[1754864950478,1.61712,4227.5,4227.4,1.5524]
[1754864950685,1.1441,4227.5,4227.4,1.5524]
[1754864950884,0.4544,4227.5,4227.4,1.5524]
[1754864951885,0.1757,4227.5,4227.4,1.5524]
[1754864952289,0.64872,4227.5,4227.4,1.5524]
[1754864952489,0.92742,4227.5,4227.4,1.5524]
[1754864954182,1.33662,4227.5,4227.4,1.5524]
[1754864955583,0.47301,4227.6,4227.5,0.64782]
[1754864955888,21.776,4227.6,4227.5,2.02542]
[1754864956187,21.9517,4227.6,4227.5,2.02542]
[1754864956487,0.1757,4227.6,4227.5,2.02542]
[1754864956688,0.64869,4227.8,4227.7,2.02538]
[1754864956989,0.92739,4227.8,4227.7,2.02538]
[1754864957289,1.61709,4227.8,4227.7,1.5524]
[1754864958290,0.1757,4227.8,4227.7,1.5524]
[1754864958590,0.4544,4227.8,4227.7,1.5524]
[1754864958790,1.1441,4227.8,4227.7,1.5524]
[1754864959289,23.39206,4228.1,4228.0,1.5524]
[1754864962091,23.39206,4228.1,4228.0,0.2799]
[1754864962288,0.92918,4227.8,4227.7,1.0139]
[1754864962495,1.61708,4227.8,4227.7,1.2938]
[1754864963293,1.1441,4227.8,4227.7,1.76679]
[1754864963492,1.1441,4227.8,4227.7,2.02539]
[1754864964791,1.1441,4227.8,4227.7,1.5524]
[1754864967893,0.4562,4227.7,4227.6,0.6216]
[1754864968194,22.9151,4227.7,4227.6,1.5524]
[1754864968394,23.38809,4227.7,4227.6,1.5524]
[1754864968986,22.41869,4227.7,4227.6,1.2938]
[1754864969189,22.41869,4227.7,4227.6,1.5524]
[1754864969385,21.9457,4227.7,4227.6,1.5524]
[1754864969590,21.77,4227.8,4227.6,0.9308]
[1754864969798,0.473,4227.7,4227.6,1.5524]
[1754864969995,1.3366,4227.7,4227.6,1.5524]
[1754864970193,1.6171,4227.7,4227.6,1.5524]
[1754864970899,1.44142,4227.5,4227.4,1.1202]
[1754864971194,1.61712,4227.5,4227.4,1.5524]
[1754864971891,0.47307,4227.1,4226.9,0.47308]
[1754864972087,1.61717,4227.1,4227.0,0.9015]
[1754864972289,1.61719,4226.8,4226.7,0.6216]
[1754864972498,1.61724,4226.4,4226.3,1.74565]
[1754864972693,1.1441,4226.4,4226.3,1.74565]
[1754864972897,0.47311,4226.7,4226.5,0.47312]
[1754864973201,0.4544,4226.6,4226.5,1.09472]
[1754864973406,0.1757,4226.6,4226.5,1.09472]
[1754864973707,1.1441,4226.6,4226.5,2.02552]
[1754864974406,1.1441,4226.6,4226.5,1.5524]
[1754864974800,0.4562,4226.4,4226.3,1.5524]
[1754864974998,1.1441,4226.4,4226.3,1.5524]
[1754864975504,22.2224,4226.7,4226.6,1.5718]
[1754864975801,22.6092,4226.7,4226.6,1.5718]
[1754864976007,22.865,4226.7,4226.6,1.5718]
[1754864976807,22.865,4226.7,4226.6,2.04492]
[1754864976997,0.1697,4227.0,4226.3,1.18287]
[1754864977203,0.1697,4227.0,4226.9,1.5716]
[1754864977405,1.0821,4227.0,4226.9,1.5716]
[1754864977709,1.0821,4227.0,4226.9,2.04468]
[1754864978909,1.0821,4227.0,4226.9,1.5716]
[1754864979606,0.1697,4227.0,4226.9,1.5716]
[1754864980308,0.1697,4227.0,4226.3,1.18287]
[1754864980309,0.6566,4227.3,4227.0,0.8602]
[1754864980505,0.4255,4227.9,4227.8,1.79038]
[1754864980811,22.1935,4227.9,4227.8,1.79038]
[1754864981013,22.8501,4227.9,4227.8,2.04458]
[1754864982011,1.0821,4227.9,4227.8,2.04458]
[1754864985012,0.1697,4227.9,4227.8,2.04458]
[1754864985215,1.0821,4228.5,4228.4,2.0445]
[1754864989816,1.0821,4228.5,4228.4,1.5716]
[1754864992723,0.1697,4228.5,4228.4,1.5716]
[1754864992922,1.0821,4228.9,4228.8,2.04447]
[1754864994122,1.0821,4228.9,4228.8,1.5716]
[1754864994723,0.8123,4228.4,4228.3,1.5716]
[1754864995320,1.0821,4228.4,4228.3,1.5716]
[1754864995927,1.0821,4228.4,4228.3,0.8602]
[1754864996123,1.0821,4228.4,4228.3,0.4445]
[1754864996328,1.0821,4228.4,4228.3,0.7248]
[1754864997622,1.0821,4228.4,4228.3,0.9017]
[1754864999127,1.0821,4228.4,4228.3,1.5716]
[1754864999521,0.4395,4228.4,4228.3,1.5716]
[1754864999724,0.1697,4228.4,4228.3,1.5716]
[1754865000329,0.1697,4228.9,4228.8,0.172]
[1754865000533,1.0821,4228.9,4228.8,0.6214]
[1754865000826,0.59122694,4229.5,4228.2,1.18233]
[1754865000827,0.44468243,4229.4,4229.3,0.8756]
[1754865001030,0.44468243,4229.4,4229.3,1.5716]
[1754865001234,0.00518243,4229.4,4229.3,1.5716]
[1754865003234,0.17488243,4229.4,4229.3,1.5716]
[1754865003435,0.44468243,4229.4,4229.3,1.5716]
[1754865003640,0.83148243,4229.4,4229.3,1.5716]
[1754865004032,1.08728243,4229.4,4229.3,1.5716]
[1754865006337,1.08728243,4229.4,4229.3,0.9017]
[1754865007436,1.0821,4229.4,4229.3,1.3125]
[1754865007742,1.0821,4229.4,4229.3,1.5867]
[1754865008242,1.0821,4229.4,4229.3,2.05951]
[1754865009245,1.0821,4229.4,4229.3,1.5867]
[1754865009440,0.14786117,4229.7,4229.6,0.6271]
[1754865009641,1.1096,4230.1,4230.0,0.62191757]
[1754865009940,0.4105,4230.0,4229.6,0.88357]
[1754865010141,1.58858,4229.6,4229.5,0.6271]
[1754865010340,1.59248,4229.6,4229.5,1.5667]
[1754865010644,1.1197,4229.6,4229.5,1.5667]
[1754865011041,1.1096,4229.6,4229.5,1.5667]
[1754865011243,0.4419,4229.8,4229.7,1.5667]
[1754865012248,1.1096,4229.8,4229.7,1.5667]
[1754865013442,0.1843,4229.8,4229.7,1.5667]
[1754865013643,0.4419,4230.2,4230.0,1.41234]
[1754865013843,0.4419,4230.2,4230.1,0.6271]
[1754865014045,0.4415,4230.4,4230.3,0.74119]
[1754865014243,1.7303694,4230.6,4230.5,1.5667]
[1754865014442,0.47271,4230.2,4229.5,1.45619]
[1754865014647,1.59241,4230.2,4230.1,1.5667]
[1754865015042,1.1197,4230.2,4230.1,1.5667]
[1754865015242,1.58856,4229.8,4229.7,0.8817]
[1754865015450,2.18368694,4229.8,4229.7,0.8817]
[1754865015845,2.18368694,4229.8,4229.7,1.5667]
[1754865015846,1.1096,4229.8,4229.7,1.5667]
[1754865016448,1.59276,4229.8,4229.7,1.5667]
[1754865017448,1.12,4229.8,4229.7,2.03947]
[1754865017645,1.1158,4229.8,4229.7,2.03947]
[1754865017842,0.1843,4229.8,4229.7,2.03947]
[1754865018043,1.18173,4230.5,4229.2,1.18206]
[1754865018044,0.5948,4230.2,4230.1,1.5667]
[1754865018249,0.4419,4230.4,4230.3,0.6271]
[1754865018443,1.1096,4230.4,4230.3,1.5667]
[1754865018653,0.1843,4230.4,4230.3,1.5667]
[1754865018845,0.1480994,4230.9,4230.6,0.1843]
[1754865019159,1.1096,4230.9,4230.8,1.5667]
[1754865019452,0.47263,4231.0,4230.8,1.09974]
[1754865019653,0.72333672,4231.4,4229.9,0.18678421]
[1754865019654,0.1480994,4231.4,4230.1,2.36362]
[1754865019864,1.1,4231.5,4231.3,0.6271]
[1754865020153,1.1,4231.5,4231.2,0.4726]
[1754865020154,0.8188,4231.5,4231.4,1.5667]
[1754865020347,0.5376,4231.5,4231.4,1.5667]
[1754865020548,0.1480994,4232.6,4232.4,0.2685]
[1754865020752,0.4081994,4232.6,4232.5,0.8868]
[1754865021053,1.5401,4232.3,4232.2,0.4428]
[1754865021252,1.5401,4232.3,4232.2,1.1278]
[1754865021450,1.5401,4232.3,4230.8,1.1816]
[1754865021451,0.47249,4232.2,4231.8,0.685]
[1754865021656,1.5401,4231.9,4231.8,1.161]
[1754865021957,1.5401,4231.9,4231.8,1.1817]
[1754865022353,0.6119,4231.9,4231.1,0.0207]
[1754865022559,1.5401,4231.5,4231.4,1.1278]
[1754865022760,1.1296,4231.5,4231.4,1.1278]
[1754865022954,1.5401,4231.5,4231.4,1.1278]
[1754865023150,1.5401,4231.5,4231.4,1.161]
[1754865023655,1.5401,4231.5,4231.4,1.1278]
[1754865024155,0.2572,4231.2,4231.1,0.2742]
[1754865024354,0.2572,4231.2,4230.9,0.4108]
[1754865024355,1.5401,4230.9,4230.8,1.161]
[1754865024562,1.5401,4230.9,4230.8,1.1817]
[1754865024755,1.5401,4230.9,4230.8,1.161]
[1754865025554,2.01278,4230.5,4230.4,0.4428]
[1754865026058,2.01281,4230.2,4230.1,0.4428]
[1754865026259,0.91425,4229.9,4229.8,1.1278]
[1754865026562,2.01285,4229.9,4229.8,1.1278]
[1754865026764,2.01285,4229.9,4229.8,1.1817]
[1754865027062,1.60235,4229.9,4229.8,1.1817]
[1754865027261,0.47275,4229.9,4229.8,1.1817]
[1754865027559,0.73285,4229.9,4229.8,1.1817]
[1754865027761,1.08755,4229.9,4229.8,1.1817]
[1754865028066,1.34515,4229.9,4229.8,1.1817]
[1754865028454,0.6148,4229.9,4229.8,1.1817]
[1754865029659,1.5401,4229.9,4229.8,1.1619]
[1754865029857,1.5401,4229.9,4229.8,1.1278]
[1754865030358,1.5401,4229.9,4229.8,0.4428]
[1754865030553,1.5401,4229.9,4229.8,0.2685]
[1754865030759,0.6119,4229.6,4229.5,0.8536]
[1754865030962,0.4305,4229.6,4229.5,1.1832]
[1754865031162,1.1296,4229.6,4229.5,1.1832]
[1754865031361,1.5401,4229.6,4229.5,1.1832]
[1754865032266,0.6148,4229.6,4229.5,1.1832]
[1754865032463,0.6148,4229.6,4228.6,0.19187083]
[1754865032464,0.7016,4230.3,4229.9,1.15775]
[1754865032656,1.5401,4230.3,4230.2,1.1278]
[1754865032862,1.5401,4230.3,4230.2,1.1619]
[1754865033063,1.1296,4230.3,4230.2,1.1832]
[1754865033669,0.6148,4230.3,4230.2,1.1832]
[1754865034366,0.4305,4230.3,4230.2,1.1832]
[1754865034667,1.2829,4230.6,4230.5,1.1832]
[1754865035168,0.6148,4230.6,4230.5,1.1832]
[1754865035864,1.1449,4230.6,4230.5,1.1832]
[1754865036064,1.5524,4230.6,4230.5,1.1832]
[1754865036759,1.5524,4230.6,4230.5,1.1619]
[1754865037965,1.5524,4230.6,4230.5,1.63458]
[1754865038167,0.6148,4230.6,4230.5,1.65548]
[1754865040480,1.5632,4230.6,4230.5,1.33208]
[1754865040876,1.5632,4230.6,4230.5,1.63208]
[1754865041972,1.5632,4230.6,4230.5,1.1594]
[1754865042168,0.6147,4230.1,4230.0,1.59874]
[1754865042367,1.5741,4230.1,4230.0,1.59874]
[1754865042568,1.5741,4230.1,4230.0,0.93004]
[1754865043083,1.5741,4230.1,4230.0,0.2779]
[1754865043282,1.5741,4229.9,4229.8,0.93005]
[1754865043885,1.5741,4229.9,4229.8,1.33215]
[1754865044082,1.5741,4229.9,4229.8,1.126]
[1754865044485,2.04685,4229.9,4229.8,1.126]
[1754865044786,1.5741,4229.9,4229.8,1.1594]
[1754865045581,1.5741,4229.9,4229.8,0.1794]
[1754865045778,1.5741,4229.5,4229.4,0.7239]
[1754865045981,0.6257,4229.5,4229.4,0.7782]
[1754865046283,0.6257,4229.5,4229.4,1.1803]
[1754865048285,0.448,4229.5,4229.4,1.1803]